bitfinex/quotes_SOLUSD_20251006
["timestamp","ask_amount","ask_price","bid_price","bid_amount"]
[1759791066129,2.4379947,234.48,234.43,0.67]
[1759791066315,10.87647521,234.51,234.43,0.67]
[1759791066514,2.43770325,234.5,234.43,0.67]
[1759791066715,2.43770325,234.49,234.43,0.67]
[1759791067030,11.40950152,234.51,234.43,0.67]
[1759791067232,10.87647521,234.49,234.43,0.67]
[1759791067432,2.4377022,234.48,234.43,0.67]
[1759791067631,2.4377022,234.48,234.44,0.67]
[1759791067833,2.4377022,234.48,234.45,29.92]
[1759791068131,2.4377022,234.48,234.45,30.59]
[1759791068337,4.26348326,234.55,234.46,0.67]
[1759791068540,1.21291268,234.56,234.46,0.67]
[1759791068541,13.31366954,234.54,234.46,0.67]
[1759791068716,2.43719433,234.53,234.46,0.67]
[1759791068917,2.43719433,234.52,234.46,0.67]
[1759791069237,10.87647521,234.55,234.47,4.26493794]
[1759791069440,2.43639299,234.54,234.48,0.67]
[1759791069641,2.43639299,234.54,234.49,29.92]
[1759791069943,2.43639299,234.54,234.5,0.67]
[1759791070447,4.26336463,234.56,234.51,0.67]
[1759791070647,4.26336463,234.56,234.49,29.92]
[1759791070648,2.4356856,234.55,234.49,29.92]
[1759791070845,2.4356856,234.54,234.52,0.67]
[1759791071016,10.87647521,234.57,234.53,29.92]
[1759791071219,2.43569084,234.56,234.53,30.59]
[1759791071747,15.13960316,234.57,234.53,30.59]
[1759791072257,10.87647521,234.57,234.54,0.67]
[1759791072426,2.22430071,234.59,234.46,20.8]
[1759791072627,10.87647521,234.57,234.51,0.67]
[1759791072830,10.87647521,234.57,234.52,29.92]
[1759791073018,0.68,234.56,234.52,29.92]
[1759791073526,15.13959496,234.57,234.52,29.92]
[1759791073741,15.13959496,234.57,234.53,29.92]
[1759791073921,15.81959496,234.57,234.53,29.92]
[1759791074936,15.13959496,234.57,234.53,29.92]
[1759791075853,15.13959496,234.57,234.54,0.67]
[1759791076361,15.23819104,234.59,234.55,0.67]
[1759791076362,2.22430071,234.59,234.55,0.67]
[1759791076638,15.13868644,234.62,234.54,4.26365186]
[1759791076824,15.13868644,234.62,234.56,0.67]
[1759791077025,2.43181488,234.61,234.57,29.92]
[1759791078624,6.6943496,234.61,234.58,0.66]
[1759791078826,10.87647521,234.58,234.5,29.92]
[1759791079026,10.87647521,234.51,234.5,29.92]
[1759791080252,0.53284453,234.59,234.5,30.58]
[1759791080481,0.53284453,234.59,234.51,0.66]
[1759791080482,10.87647521,234.57,234.51,0.66]
[1759791080955,4.2633015,234.56,234.51,0.66]
[1759791081540,4.2633015,234.56,234.52,0.66]
[1759791081845,4.2633015,234.56,234.53,0.66]
[1759791083148,11.40934246,234.58,234.53,0.66]
[1759791083149,15.13959496,234.57,234.53,0.66]
[1759791084326,15.13959496,234.57,234.5,29.92]
[1759791084327,25.79739433,234.57,234.5,29.92]
[1759791084525,25.79739433,234.57,234.48,0.66]
[1759791084526,1.67699959,234.54,234.48,0.66]
[1759791084730,1.67699959,234.54,234.49,30.1]
[1759791084949,2.37699959,234.54,234.49,30.76]
[1759791085159,0.53291268,234.56,234.5,0.66]
[1759791085160,4.26384684,234.53,234.5,0.66]
[1759791085336,15.14010169,234.55,234.5,0.66]
[1759791087850,10.87647521,234.53,234.49,30.1]
[1759791088055,4.26362648,234.55,234.5,0.66]
[1759791088233,4.26362648,234.55,234.51,0.66]
[1759791089030,4.26402865,234.52,234.41,4.2660296]
[1759791089226,3.31655125,234.51,234.45,20.8]
[1759791089454,0.7,234.5,234.45,20.8]
[1759791089654,0.7,234.49,234.42,30.76]
[1759791089953,0.7,234.49,234.42,51.56]
[1759791091254,4.96465122,234.49,234.42,55.82568538]
[1759791092048,4.96465122,234.49,234.43,0.66]
[1759791092559,4.96465122,234.49,234.43,4.92554251]
[1759791093759,4.96465122,234.49,234.43,0.66]
[1759791094061,4.26465122,234.49,234.43,0.66]
[1759791094730,15.14086753,234.5,234.43,0.66]
[1759791095863,15.14086753,234.5,234.43,4.92566086]
[1759791096235,0.53284453,234.59,234.45,20.8]
[1759791096541,13.08309054,234.69,234.49,20.8]
[1759791096542,4.26221123,234.62,234.49,20.8]
[1759791096735,4.26221123,234.62,234.53,20.8]
[1759791096965,13.98023886,234.61,234.54,30.12]
[1759791097159,2.43376365,234.6,234.54,30.12]
[1759791097350,11.54647521,234.61,234.54,30.12]
[1759791097670,10.87647521,234.61,234.55,0.71]
[1759791098663,15.138876,234.61,234.55,0.71]
[1759791099168,4.26221632,234.62,234.55,0.71]
[1759791099349,2.43279883,234.61,234.55,0.71]
[1759791099662,13.30927404,234.61,234.55,0.71]
[1759791099848,13.30957799,234.6,234.54,30.12]
[1759791100047,6.69585907,234.59,234.54,30.12]
[1759791100248,4.93275629,234.59,234.54,30.12]
[1759791100446,0.67,234.59,234.54,30.83]
[1759791101242,15.13912765,234.6,234.54,30.83]
[1759791102563,4.26202957,234.63,234.55,0.71]
[1759791102760,4.26202957,234.63,234.54,30.12]
[1759791102761,10.87647521,234.61,234.54,30.12]
[1759791102977,2.43373098,234.6,234.54,30.12]
[1759791104058,2.43373098,234.6,234.54,30.83]
[1759791104250,4.26275629,234.59,234.54,30.83]
[1759791104462,4.26275629,234.59,234.55,0.71]
[1759791106166,4.26257459,234.6,234.55,0.71]
[1759791106472,15.13888259,234.61,234.54,30.12]
[1759791106768,0.67,234.59,234.54,30.12]
[1759791107155,0.67,234.59,234.54,30.83]
[1759791109275,10.87647521,234.61,234.55,0.71]
[1759791109462,2.43793889,234.6,234.55,0.71]
[1759791109660,2.43794102,234.59,234.55,0.71]
[1759791109880,4.26205698,234.63,234.55,0.71]
[1759791110187,13.49302646,234.61,234.51,0.71]
[1759791110346,3.67079311,234.6,234.52,30.1]
[1759791110551,2.43797129,234.59,234.52,30.1]
[1759791110754,2.61655125,234.56,234.53,30.1]
[1759791110972,10.87647521,234.54,234.53,30.1]
[1759791111179,17.57811154,234.54,234.53,30.1]
[1759791111775,20.89466279,234.54,234.53,30.1]
[1759791113179,18.27811154,234.54,234.53,30.1]
[1759791113354,17.57811154,234.54,234.53,30.1]
[1759791113558,2.43797129,234.54,234.53,30.1]
[1759791113963,2.43797129,234.54,234.53,30.81]
[1759791114157,6.70163633,234.54,234.53,30.1]
[1759791114376,7.40163633,234.54,234.53,30.1]
[1759791114565,10.01818758,234.54,234.53,30.1]
[1759791114882,7.58021629,234.54,234.53,30.1]
[1759791115056,10.01899448,234.54,234.53,30.1]
[1759791115362,7.58021629,234.54,234.53,30.1]
[1759791116390,10.01874717,234.54,234.53,30.1]
[1759791117372,10.87647521,234.49,234.46,30.18]
[1759791117570,2.61655125,234.46,234.41,0.71]
[1759791117760,2.43853088,234.45,234.42,30.89]
[1759791117960,2.43853088,234.44,234.42,30.18]
[1759791118176,2.61655125,234.46,234.42,30.18]
[1759791118382,2.43693846,234.45,234.42,30.89]
[1759791118578,2.43693846,234.45,234.43,0.71]
[1759791119386,6.70236672,234.45,234.43,0.71]
[1759791119563,4.26542826,234.45,234.44,0.71]
[1759791119882,11.40959245,234.47,234.44,0.71]
[1759791119883,10.87647521,234.47,234.44,0.71]
[1759791120086,2.43616745,234.46,234.44,0.71]
[1759791120393,10.87647521,234.53,234.45,0.71]
[1759791120687,2.96906171,234.52,234.45,0.71]
[1759791120876,10.87647521,234.5,234.45,0.71]
[1759791121081,2.43605813,234.49,234.46,0.71]
[1759791121283,2.43605813,234.49,234.47,30.18]
[1759791121482,7.4007699,234.49,234.47,30.18]
[1759791121676,2.43579561,234.48,234.47,30.18]
[1759791122199,4.26471177,234.49,234.47,30.18]
[1759791122564,4.26471177,234.49,234.32,31.89702745]
[1759791122565,1.2330945,234.48,234.35,4.9275945]
[1759791122785,10.87647521,234.42,234.37,0.71]
[1759791123006,3.14980495,234.41,234.38,30.18]
[1759791123177,0.5332537,234.41,234.38,30.89]
[1759791123376,3.14980495,234.41,234.38,30.89]
[1759791123680,13.49302646,234.39,234.38,30.18]
[1759791125890,17.75942007,234.39,234.38,30.18]
[1759791126094,10.87647521,234.39,234.38,30.18]
[1759791126270,10.87647521,234.45,234.38,30.89]
[1759791126592,10.87647521,234.46,234.39,0.71]
[1759791128287,4.26530177,234.45,234.39,0.71]
[1759791129707,4.26530177,234.45,234.39,4.97637909]
[1759791129889,4.26530177,234.45,234.4,0.71]
[1759791130087,4.26530177,234.45,234.41,0.71]
[1759791130316,10.87647521,234.46,234.42,0.71]
[1759791130502,10.87647521,234.46,234.43,30.18]
[1759791130694,15.14161129,234.46,234.43,30.18]
[1759791131329,17.75816254,234.46,234.43,30.18]
[1759791131616,13.49302646,234.44,234.43,30.18]
[1759791131785,10.87647521,234.44,234.43,30.18]
[1759791133515,15.14195891,234.44,234.43,30.18]
[1759791134588,4.26530758,234.45,234.43,30.89]
[1759791134793,4.26511984,234.46,234.43,30.89]
[1759791135106,4.26511984,234.46,234.43,30.18]
[1759791136597,10.87647521,234.45,234.43,30.18]
[1759791137016,4.2654837,234.44,234.43,30.18]
[1759791138826,4.26457418,234.49,234.43,30.89]
[1759791139021,10.87647521,234.49,234.44,0.71]
[1759791139532,10.87647521,234.47,234.43,30.18]
[1759791139694,10.87647521,234.47,234.44,0.71]
[1759791139890,10.87647521,234.47,234.45,0.71]
[1759791140094,10.87647521,234.47,234.43,30.18]
[1759791140329,10.87647521,234.47,234.43,30.89]
[1759791140499,10.87647521,234.47,234.44,0.71]
[1759791140926,15.14153445,234.47,234.44,0.71]
[1759791141214,15.14153445,234.47,234.43,30.18]
[1759791141419,15.14153445,234.47,234.44,0.71]
[1759791141713,10.87647521,234.47,234.44,0.71]
[1759791141920,15.14142093,234.47,234.43,30.18]
[1759791142230,15.14142093,234.47,234.43,30.89]
[1759791142397,15.14142093,234.47,234.44,0.71]
[1759791143124,15.14142093,234.47,234.43,30.18]
[1759791143322,15.14142093,234.47,234.44,0.71]
[1759791144651,15.14142093,234.47,234.43,30.18]
[1759791145238,15.14142093,234.47,234.43,30.89]
[1759791145632,15.14142093,234.47,234.43,30.18]
[1759791145834,15.14142093,234.47,234.44,0.71]
[1759791148627,15.14142093,234.47,234.45,0.71]
[1759791148826,15.14142093,234.47,234.46,0.71]
[1759791149055,15.14142093,234.47,234.44,0.71]
[1759791152433,0.53307177,234.49,234.43,34.44553327]
[1759791152640,10.87647521,234.5,234.44,0.71]
[1759791152852,2.43391156,234.49,234.44,0.71]
[1759791153234,10.87647521,234.5,234.44,0.71]
[1759791153944,4.26404955,234.52,234.44,0.71]
[1759791154142,13.31162545,234.51,234.45,4.26530177]
[1759791154331,2.43515024,234.5,234.46,0.71]
[1759791154531,2.43515024,234.5,234.47,30.08]
[1759791154733,2.43515024,234.5,234.48,0.71]
[1759791154946,10.87647521,234.53,234.49,0.71]
[1759791155139,2.43652402,234.52,234.49,0.71]
[1759791155340,10.87647521,234.54,234.5,0.71]
[1759791155538,2.43864255,234.53,234.51,30.08]
[1759791156150,6.70249812,234.53,234.51,30.08]
[1759791156348,4.26385557,234.53,234.51,30.08]
[1759791156536,10.87647521,234.54,234.51,30.08]
[1759791156736,2.43887536,234.53,234.51,30.08]
[1759791157842,6.70272867,234.53,234.51,30.08]
[1759791158155,2.43884242,234.52,234.51,30.08]
[1759791160344,18.24934628,234.52,234.51,30.08]
[1759791160654,10.87647521,234.51,234.44,0.72]
[1759791160858,2.43884242,234.5,234.45,30.06]
[1759791161045,11.40954698,234.49,234.45,30.06]
[1759791161243,0.67,234.48,234.45,30.06]
[1759791161847,11.40954698,234.49,234.45,30.06]
[1759791162362,11.40954698,234.49,234.45,30.78]
[1759791162565,15.67413896,234.49,234.45,30.78]
[1759791162861,16.34413896,234.49,234.45,30.06]
[1759791163759,15.67413896,234.49,234.45,30.78]
[1759791165747,10.87647521,234.49,234.46,0.72]
[1759791166748,2.43906838,234.48,234.46,0.72]
[1759791167154,2.43906838,234.48,234.45,30.06]
[1759791167353,2.43906838,234.48,234.45,30.78]
[1759791167877,2.43906838,234.48,234.46,0.72]
[1759791169178,15.14105089,234.49,234.46,0.72]
[1759791169678,10.87647521,234.5,234.47,0.69]
[1759791169863,2.43987084,234.49,234.48,0.69]
[1759791170876,2.43987084,234.49,234.46,0.69]
[1759791171066,10.87647521,234.51,234.45,30.06]
[1759791171067,10.87647521,234.51,234.47,0.69]
[1759791171270,2.44051043,234.5,234.48,0.69]
[1759791171467,10.87647521,234.51,234.49,30.02]
[1759791171766,2.44091596,234.5,234.49,30.02]
[1759791172259,6.70531575,234.5,234.49,30.02]
[1759791174777,7.38531575,234.5,234.49,30.02]
[1759791174978,20.47047876,234.5,234.49,30.02]
[1759791176382,18.79484,234.5,234.49,30.02]
[1759791176589,20.47047876,234.5,234.49,30.02]
[1759791176764,18.0295628,234.5,234.49,30.02]
[1759791177075,20.47149355,234.5,234.49,30.02]
[1759791177273,18.0295628,234.5,234.49,30.02]
[1759791177476,20.47185864,234.5,234.49,30.02]
[1759791180468,10.87647521,234.49,234.37,0.69]
[1759791180673,10.87647521,234.42,234.38,29.98]
[1759791180869,14.9253806,234.5,234.38,29.98]
[1759791180870,2.97554954,234.41,234.38,29.98]
[1759791181077,2.44229584,234.4,234.39,0.69]
[1759791181464,11.40961519,234.46,234.39,0.69]
[1759791181779,2.44280665,234.45,234.39,0.69]
[1759791181973,4.26584762,234.42,234.39,0.69]
[1759791182167,4.26584762,234.42,234.38,29.98]
[1759791182168,2.44280665,234.41,234.4,0.69]
[1759791182368,2.44280665,234.41,234.38,29.98]
[1759791182569,10.87647521,234.5,234.38,34.2465369]
[1759791182762,2.9756763,234.49,234.38,34.2465369]
[1759791182968,10.87647521,234.47,234.39,0.69]
[1759791183276,2.44260453,234.46,234.39,0.69]
[1759791183588,2.44260453,234.45,234.39,0.69]
[1759791183889,2.44260453,234.44,234.39,4.95638955]
[1759791184077,2.44260453,234.43,234.4,0.69]
[1759791184282,2.44260453,234.42,234.4,0.69]
[1759791184587,15.14158867,234.47,234.4,0.69]
[1759791184790,2.44250233,234.46,234.4,0.69]
[1759791184970,2.44250233,234.45,234.4,0.69]
[1759791185176,2.44250233,234.44,234.4,0.69]
[1759791185374,2.44250233,234.43,234.4,0.69]
[1759791185577,10.87647521,234.48,234.41,20.8]
[1759791185775,2.44235985,234.47,234.42,4.95584762]
[1759791185973,15.14087774,234.5,234.43,0.69]
[1759791186180,2.44239375,234.49,234.44,30.02]
[1759791186379,2.44239375,234.48,234.45,0.69]
[1759791186572,2.44239375,234.47,234.45,0.69]
[1759791186766,0.68,234.49,234.44,30.02]
[1759791187076,2.44241306,234.48,234.44,30.71]
[1759791187271,2.44241306,234.47,234.44,30.02]
[1759791187485,2.44241306,234.46,234.45,0.69]
[1759791187875,2.44241306,234.46,234.44,30.02]
[1759791188104,4.26496992,234.47,234.44,30.71]
[1759791188296,2.44242479,234.46,234.44,30.02]
[1759791188598,4.26496992,234.47,234.44,30.02]
[1759791188787,2.44241861,234.46,234.44,30.02]
[1759791188983,2.44241861,234.45,234.44,30.02]
[1759791189482,6.70772038,234.45,234.44,30.02]
[1759791189882,17.58419559,234.45,234.44,30.02]
[1759791191092,17.5841307,234.45,234.44,30.02]
[1759791191807,13.31882893,234.45,234.44,30.71]
[1759791194189,2.44235372,234.45,234.44,30.71]
[1759791194504,10.87647521,234.49,234.44,30.71]
[1759791194689,2.44222624,234.48,234.45,0.69]
[1759791194887,2.44222624,234.47,234.45,0.69]
[1759791195196,2.44222642,234.46,234.44,34.28545148]
[1759791195504,15.14105538,234.49,234.44,30.02]
[1759791195803,2.44223197,234.48,234.45,0.69]
[1759791196002,2.44223197,234.47,234.45,0.69]
[1759791196194,2.44223197,234.46,234.44,30.02]
[1759791196398,10.87647521,234.49,234.44,34.28547115]
[1759791196573,2.44223973,234.48,234.44,34.28547115]
[1759791196779,2.44223973,234.47,234.45,0.69]
[1759791197083,2.44223973,234.46,234.44,34.28547115]
[1759791197284,10.87647521,234.51,234.44,34.28547115]
[1759791197480,10.87647521,234.51,234.45,0.69]
[1759791197481,2.44227837,234.5,234.45,0.69]
[1759791197788,2.44227837,234.49,234.45,0.69]
[1759791197998,2.44227837,234.48,234.45,0.69]
[1759791198181,10.87647521,234.51,234.45,4.95524434]
[1759791198499,2.4423029,234.5,234.46,0.69]
[1759791198705,2.4423029,234.49,234.46,0.69]
[1759791198900,2.4423029,234.48,234.46,0.69]
[1759791199093,10.87647521,234.51,234.46,0.69]
[1759791199295,2.44222247,234.5,234.46,0.69]
[1759791199488,2.44222247,234.49,234.46,0.69]
[1759791199687,2.44222247,234.48,234.46,4.95503819]
[1759791199894,2.22504697,234.52,234.47,0.69]
[1759791200191,2.44217458,234.51,234.48,30.69]
[1759791200392,2.44217458,234.5,234.48,30.69]
[1759791200619,2.44217458,234.49,234.48,30.69]
[1759791201403,2.22504697,234.52,234.48,30.69]
[1759791201594,2.44259089,234.51,234.48,30.69]
[1759791201793,2.44259089,234.5,234.48,30.69]
[1759791201991,2.44259089,234.49,234.48,30.0]
[1759791202604,2.44259089,234.49,234.48,30.69]
[1759791203484,2.44259089,234.49,234.44,0.69]
[1759791203705,2.44259089,234.48,234.45,30.0]
[1759791203907,10.87647521,234.45,234.39,4.26570867]
[1759791204215,2.44259089,234.44,234.41,0.69]
[1759791204405,10.87647521,234.42,234.35,0.2]
[1759791204605,1.67563876,234.39,234.35,0.2]
[1759791204809,2.44259089,234.38,234.36,30.18]
[1759791205110,4.26639361,234.39,234.36,30.87]
[1759791205306,10.87647521,234.4,234.36,30.87]
[1759791205510,2.44265831,234.39,234.37,0.69]
[1759791205716,10.87647521,234.4,234.36,30.18]
[1759791206011,2.44266009,234.39,234.36,30.87]
[1759791206214,10.87647521,234.4,234.36,30.87]
[1759791206406,2.44206913,234.39,234.36,30.87]
[1759791206609,10.87647521,234.4,234.36,30.87]
[1759791206610,2.44205112,234.38,234.36,30.87]
[1759791206822,15.14271999,234.4,234.36,30.87]
[1759791207116,2.44205106,234.39,234.37,0.69]
[1759791207318,2.44205106,234.38,234.37,0.69]
[1759791207704,2.44132832,234.38,234.37,0.69]
[1759791208004,15.14250734,234.41,234.37,0.69]
[1759791208005,2.44132832,234.4,234.37,0.69]
[1759791208206,2.44132832,234.39,234.37,0.69]
[1759791208520,15.14250734,234.41,234.37,0.69]
[1759791208699,2.44071115,234.4,234.37,0.69]
[1759791209014,2.44071115,234.39,234.37,0.69]
[1759791209212,15.14251679,234.41,234.37,0.69]
[1759791209513,2.44017638,234.4,234.37,0.69]
[1759791209701,2.44017638,234.39,234.37,0.69]
[1759791209903,15.14251679,234.41,234.37,0.69]
[1759791210107,6.70646023,234.4,234.37,0.69]
[1759791210317,2.44017627,234.39,234.37,0.69]
[1759791210713,4.26628396,234.4,234.37,0.69]
[1759791210904,2.43971346,234.39,234.37,0.69]
[1759791211100,2.43971346,234.39,234.36,30.18]
[1759791211320,3.11971346,234.39,234.36,30.18]
[1759791211514,0.68,234.39,234.36,30.18]
[1759791211694,2.43927304,234.38,234.36,30.18]
[1759791212091,7.41939968,234.4,234.36,30.18]
[1759791212314,3.11927298,234.39,234.36,30.18]
[1759791212516,14.17631448,234.38,234.36,30.18]
[1759791212722,0.68,234.37,234.36,30.18]
[1759791213718,11.55647521,234.37,234.36,30.18]
[1759791214113,15.8232329,234.37,234.36,30.18]
[1759791214320,18.26023897,234.37,234.36,30.18]
[1759791215917,17.58023897,234.37,234.36,30.18]
[1759791216427,18.25023897,234.37,234.36,30.18]
[1759791217502,20.87007824,234.37,234.36,30.18]
[1759791217702,21.40342295,234.37,234.36,30.18]
[1759791218821,20.8662167,234.37,234.36,30.18]
[1759791220206,13.30961974,234.37,234.36,30.18]
[1759791220426,20.1962167,234.37,234.36,30.18]
[1759791221549,13.30961974,234.37,234.36,30.88]
[1759791221736,2.43314453,234.37,234.36,30.88]
[1759791221913,2.43314453,234.4,234.36,30.88]
[1759791222111,2.41088377,234.39,234.37,0.7]
[1759791222313,10.87647521,234.41,234.38,0.7]
[1759791222534,2.41093906,234.4,234.39,30.14]
[1759791222835,10.87647521,234.42,234.39,30.84]
[1759791223016,2.41095416,234.41,234.39,30.84]
[1759791223539,2.41095416,234.41,234.39,30.14]
[1759791223745,13.28742937,234.41,234.4,0.7]
[1759791223910,13.28742937,234.41,234.39,30.14]
[1759791224110,10.87647521,234.41,234.39,30.84]
[1759791224527,10.87647521,234.41,234.4,0.7]
[1759791224728,13.28751338,234.41,234.4,0.7]
[1759791226634,10.87647521,234.47,234.4,0.7]
[1759791226837,2.41119488,234.46,234.4,0.7]
[1759791227018,2.41119488,234.45,234.4,0.7]
[1759791227216,2.61983927,234.46,234.41,0.7]
[1759791227416,2.41119499,234.45,234.42,30.12]
[1759791227605,2.41119499,234.45,234.42,30.82]
[1759791228223,2.61983927,234.46,234.42,30.82]
[1759791228431,6.67658357,234.45,234.42,30.82]
[1759791228633,4.26537031,234.45,234.42,30.82]
[1759791229737,4.26537031,234.45,234.42,30.79]
[1759791229946,4.26537031,234.45,234.43,0.67]
[1759791232023,4.26537031,234.45,234.42,30.12]
[1759791232542,4.26537031,234.45,234.42,30.79]
[1759791233946,4.26537031,234.45,234.43,0.67]
[1759791234445,4.26537031,234.45,234.42,30.12]
[1759791234642,4.26537031,234.45,234.44,0.67]
[1759791234828,6.67734195,234.45,234.44,0.67]
[1759791235023,2.41197164,234.45,234.44,0.67]
[1759791235438,2.41197164,234.46,234.44,0.67]
[1759791235654,2.41197164,234.45,234.44,0.67]
[1759791235843,2.41197164,234.46,234.44,30.75]
[1759791236048,2.41197164,234.45,234.44,30.75]
[1759791236227,6.67710963,234.46,234.44,30.75]
[1759791236547,2.41197164,234.45,234.44,30.75]
[1759791238425,4.26513799,234.46,234.44,30.75]
[1759791238624,15.1416132,234.46,234.45,0.67]
[1759791239143,17.76145247,234.46,234.44,30.08]
[1759791240034,17.76145247,234.46,234.44,30.75]
[1759791241959,15.1416132,234.46,234.44,30.75]
[1759791243731,10.87647521,234.46,234.44,30.75]
[1759791243934,10.87647521,234.46,234.45,0.67]
[1759791244155,13.28956537,234.46,234.45,0.67]
[1759791244358,10.87647521,234.46,234.44,30.08]
[1759791244530,10.87647521,234.46,234.44,30.75]
[1759791244729,10.87647521,234.46,234.45,0.67]
[1759791244933,13.2900272,234.46,234.45,0.67]
[1759791246645,2.41355199,234.46,234.45,4.93530177]
[1759791246837,10.87647521,234.49,234.45,0.67]
[1759791247021,2.41480249,234.48,234.45,0.67]
[1759791247422,2.41525311,234.47,234.45,0.67]
[1759791247729,10.87647521,234.49,234.45,0.67]
[1759791247930,10.87647521,234.49,234.44,34.3454674]
[1759791247931,2.41525317,234.48,234.44,34.3454674]
[1759791248128,2.41525317,234.48,234.45,0.67]
[1759791248429,2.41525317,234.48,234.46,0.67]
[1759791248630,13.29172838,234.48,234.47,30.0]
[1759791249539,17.55648443,234.48,234.47,30.0]
[1759791250134,13.29172838,234.48,234.47,30.0]
[1759791250948,17.55648443,234.48,234.47,30.0]
[1759791252057,13.29172838,234.48,234.47,30.0]
[1759791252255,10.87647521,234.48,234.47,30.0]
[1759791252559,10.87647521,234.48,234.47,30.67]
[1759791252859,2.61983927,234.56,234.47,34.93491172]
[1759791253073,2.41445954,234.55,234.48,0.67]
[1759791253444,2.41445954,234.54,234.48,0.67]
[1759791253842,10.87647521,234.56,234.48,0.67]
[1759791254163,2.41341806,234.55,234.48,0.67]
[1759791255483,2.41341806,234.55,234.49,4.26457418]
[1759791255766,2.41341806,234.55,234.5,30.67]
[1759791255965,15.13982379,234.56,234.51,0.67]
[1759791256166,15.13982379,234.56,234.52,0.67]
[1759791256350,15.13982379,234.56,234.53,29.98]
[1759791256552,10.87647521,234.56,234.54,0.67]
[1759791256743,10.87647521,234.57,234.54,0.67]
[1759791256944,10.87647521,234.57,234.53,29.98]
[1759791257145,10.87647521,234.57,234.53,30.65]
[1759791257346,10.87647521,234.57,234.54,0.67]
[1759791259647,10.87647521,234.57,234.55,0.71]
[1759791260944,10.87647521,234.58,234.55,0.71]
[1759791261557,13.49631448,234.58,234.55,0.71]
[1759791262346,10.87647521,234.58,234.55,0.71]
[1759791262550,10.87647521,234.61,234.56,0.71]
[1759791262753,15.1380286,234.66,234.57,29.96]
[1759791263071,2.40860692,234.65,234.58,0.71]
[1759791263248,10.87647521,234.66,234.58,0.71]
[1759791263452,0.1,234.68,234.61,4.2623929]
[1759791263774,2.50785798,234.68,234.62,30.69]
[1759791263955,0.1,234.68,234.63,0.71]
[1759791264354,2.50687849,234.68,234.63,0.71]
[1759791265676,0.1,234.68,234.64,0.71]
[1759791265867,2.50617377,234.68,234.65,0.71]
[1759791266078,6.7673298,234.68,234.66,29.96]
[1759791266379,4.36115603,234.68,234.66,29.96]
[1759791267777,0.1,234.68,234.66,29.96]
[1759791267982,2.50496953,234.68,234.66,29.96]
[1759791268478,0.1,234.68,234.66,29.96]
[1759791268661,6.76536728,234.68,234.66,29.96]
[1759791268861,4.36113503,234.68,234.66,29.96]
[1759791269267,2.40366668,234.67,234.66,29.96]
[1759791269777,6.66496978,234.67,234.66,29.96]
[1759791270070,7.36496978,234.67,234.66,29.96]
[1759791270467,6.66496978,234.67,234.66,29.96]
[1759791271266,19.91417285,234.67,234.66,29.96]
[1759791271455,19.91417285,234.67,234.66,29.94]
[1759791271656,10.87647521,234.66,234.58,21.51]
[1759791271865,1.67272786,234.61,234.56,0.71]
[1759791272065,1.67272786,234.61,234.57,30.65]
[1759791272266,1.67272786,234.61,234.43,3.37486579]
[1759791272267,1.67272786,234.58,234.54,0.71]
[1759791272464,1.67272786,234.57,234.55,18.18]
[1759791273268,4.2633015,234.56,234.55,18.18]
[1759791273469,10.87647521,234.62,234.55,18.89]
[1759791273671,10.87647521,234.6,234.56,0.71]
[1759791273990,10.87647521,234.6,234.57,0.71]
[1759791274363,12.54920307,234.6,234.57,0.71]
[1759791274961,4.26275629,234.59,234.57,0.71]